fUSD/lending_fUSD_20250219
["ID","MTS","AMOUNT","RATE_DAILY","PERIOD"]
[353687839,1739991045106,-500.0,0.00011038,2]
[353687840,1739991045117,-500.0,0.00011038,2]
[353687841,1739991045128,-709.82,0.00011038,2]
[353687842,1739991045139,-500.0,0.00011038,2]
[353687843,1739991045149,-500.0,0.00011038,2]
[353687844,1739991045159,-500.0,0.00011038,2]
[353687845,1739991045174,-759.69,0.00011038,2]
[353687846,1739991045185,-500.0,0.00011038,2]
[353687847,1739991045196,-500.0,0.00011038,2]
[353687848,1739991045206,-939.45,0.00011038,2]
[353687849,1739991045217,-934.24,0.00011038,2]
[353687850,1739991045226,-1565.74,0.00011038,2]
[353687851,1739991045236,-500.0,0.00011038,2]
[353687852,1739991045247,-500.0,0.00011038,2]
[353687853,1739991045257,-779.39,0.00011038,2]
[353687854,1739991045267,-1114.74,0.00011038,2]
[353687855,1739991045277,-500.0,0.00011038,2]
[353687856,1739991045287,-500.0,0.00011038,2]
[353687857,1739991045296,-500.0,0.00011038,2]
[353687858,1739991045307,-500.0,0.00011038,2]
[353687859,1739991045317,-500.0,0.00011038,2]
[353687860,1739991045327,-500.0,0.00011038,2]
[353687861,1739991045337,-500.0,0.00011038,2]
[353687862,1739991045347,-403.68782345,0.00011038,2]
[353687863,1739991045357,-500.0,0.00011038,2]
[353687864,1739991045367,-1307.87,0.00011038,2]
[353687865,1739991045377,-500.0,0.00011038,2]
[353687866,1739991045386,-617.3093797,0.00011038,2]
[353687867,1739991045396,-1563.31,0.00011038,2]
[353687868,1739991045406,-363.8001145,0.00011038,2]
[353687869,1739991045416,-500.0,0.00011038,2]
[353687870,1739991045427,-626.84,0.00011038,2]
[353687871,1739991045439,-500.0,0.00011038,2]
[353687872,1739991045449,-500.0,0.00011038,2]
[353687873,1739991045459,-500.0,0.00011038,2]
[353687874,1739991045470,-500.0,0.00011038,2]
[353687875,1739991045480,-1098.62,0.00011038,2]
[353687876,1739991045490,-602.42,0.00011038,2]
[353687877,1739991045500,-1563.53,0.00011038,2]
[353687878,1739991045510,-500.0,0.00011038,2]
[353687879,1739991045519,-1617.89,0.00011038,2]
[353687880,1739991045529,-568.32,0.00011038,2]
[353687881,1739991045538,-500.0,0.00011038,2]
[353687882,1739991045548,-500.0,0.00011038,2]
[353687883,1739991045558,-500.0,0.00011038,2]
[353687884,1739991045568,-1902.45,0.00011038,2]
[353687885,1739991045577,-500.0,0.00011038,2]
[353687886,1739991045586,-997.72,0.00011038,2]
[353687887,1739991045596,-1224.85,0.00011038,2]
[353687888,1739991045605,-1076.75,0.00011038,2]
[353687889,1739991045615,-1287.1,0.00011038,2]
[353687890,1739991045626,-531.57677858,0.00011038,2]
[353687891,1739991045636,-507.43,0.00011038,2]
[353687892,1739991045645,-500.0,0.00011038,2]
[353687893,1739991045655,-1834.21,0.00011038,2]
[353687894,1739991045664,-500.0,0.00011038,2]
[353687895,1739991045675,-1131.11,0.00011038,2]
[353687896,1739991045684,-500.0,0.00011038,2]
[353687897,1739991045693,-967.39,0.00011038,2]
[353687898,1739991045703,-1818.6,0.00011038,2]
[353687899,1739991045714,-613.64,0.00011038,2]
[353687900,1739991045724,-500.0,0.00011038,2]
[353687901,1739991045734,-500.0,0.00011038,7]
[353687902,1739991045744,-1954.75,0.00011038,2]
[353687903,1739991045753,-500.0,0.00011038,2]
[353687904,1739991045763,-1010.26,0.00011038,2]
[353687905,1739991045773,-500.0,0.00011038,2]
[353687906,1739991045782,-651.03,0.00011038,2]
[353687907,1739991045792,-825.62,0.00011038,2]
[353687908,1739991045802,-500.0,0.00011038,2]
[353687909,1739991045812,-500.0,0.00011038,2]
[353687910,1739991045821,-842.88,0.00011038,2]
[353687911,1739991045831,-500.0,0.00011038,2]
[353687912,1739991045841,-500.0,0.00011038,2]
[353687913,1739991045851,-500.0,0.00011038,2]
[353687914,1739991045861,-500.0,0.00011038,2]
[353687915,1739991045870,-500.0,0.00011038,2]
[353687916,1739991045881,-500.0,0.00011038,2]
[353687917,1739991045891,-500.0,0.00011038,2]
[353687918,1739991045900,-1110.11,0.00011038,2]
[353687919,1739991045910,-811.92,0.00011038,2]
[353687920,1739991045922,-774.36,0.00011038,2]
[353687921,1739991045931,-500.0,0.00011038,2]
[353687922,1739991045941,-500.0,0.00011038,2]
[353687923,1739991045951,-1151.56,0.00011038,2]
[353687924,1739991045961,-500.0,0.00011038,2]
[353687925,1739991045971,-500.0,0.00011038,2]
[353687926,1739991045981,-500.0,0.00011038,2]
[353687927,1739991045991,-500.0,0.00011038,2]
[353687928,1739991046001,-500.0,0.00011038,2]
[353687929,1739991046010,-1042.18,0.00011038,2]
[353687930,1739991046019,-313.43523478,0.00011038,2]
[353687931,1739991046029,-500.0,0.00011038,2]
[353687932,1739991046039,-263.17932179,0.00011038,2]
[353687933,1739991046048,-500.0,0.00011038,2]
[353687934,1739991046058,-534.83,0.00011038,2]
[353687935,1739991046068,-500.0,0.00011038,2]
[353687936,1739991046077,-500.0,0.00011038,2]
[353687937,1739991046087,-176.06045969,0.00011038,2]
[353687938,1739991046097,-521.16749103,0.00011038,2]
[353687939,1739991046107,-500.0,0.00011038,2]
[353687940,1739991046117,-500.0,0.00011038,2]
[353687941,1739991046129,-500.0,0.00011038,2]
[353687942,1739991046139,-619.91,0.00011038,2]
[353687943,1739991046149,-500.0,0.00011038,2]
[353687944,1739991046159,-533.51,0.00011038,2]
[353687945,1739991046169,-500.0,0.00011038,2]
[353687946,1739991046181,-500.0,0.00011038,2]
[353687947,1739991046190,-500.0,0.00011038,2]
[353687948,1739991046200,-500.0,0.00011038,2]
[353687949,1739991046210,-581.26,0.00011038,2]
[353687950,1739991046220,-500.0,0.00011038,2]
[353687951,1739991046230,-500.0,0.00011038,2]
[353687952,1739991046240,-500.0,0.00011038,2]
[353687953,1739991046250,-500.0,0.00011038,2]
[353687954,1739991046260,-500.0,0.00011038,2]
[353687955,1739991046270,-500.0,0.00011038,2]
[353687956,1739991046280,-500.0,0.00011038,2]
[353687957,1739991046289,-500.0,0.00011038,2]
[353687958,1739991046299,-500.0,0.00011038,2]
[353687959,1739991046309,-500.0,0.00011038,2]
[353687960,1739991046318,-515.19293717,0.00011038,2]
[353687961,1739991046328,-500.0,0.00011038,2]
[353687962,1739991046338,-500.0,0.00011038,2]
[353687963,1739991046348,-500.0,0.00011038,2]
[353687964,1739991046357,-500.0,0.00011038,2]
[353687965,1739991046367,-500.0,0.00011038,2]
[353687966,1739991046377,-849.02,0.00011038,2]
[353687967,1739991046387,-563.08,0.00011038,2]
[353687968,1739991046397,-500.0,0.00011038,2]
[353687969,1739991046407,-500.0,0.00011038,2]
[353687970,1739991046417,-500.0,0.00011038,2]
[353687971,1739991046429,-758.16,0.00011038,2]
[353687972,1739991046448,-500.0,0.00011038,2]
[353687973,1739991046459,-500.0,0.00011038,2]
[353687974,1739991046469,-500.0,0.00011038,2]
[353687975,1739991046479,-139498.80433091,0.00011038,2]
[353687976,1739991046490,-150.0,0.00011057,2]
[353687977,1739991046499,-150.0,0.00011092,2]
[353687978,1739991046510,-3046.97846173,0.00011099,2]
[353687979,1739991046520,-3046.97846164,0.00011099,2]
[353687980,1739991046530,-1398.28713774,0.00011099,2]
[353687981,1739991046539,-1398.28713769,0.00011099,2]
[353687982,1739991046549,-1398.28713769,0.00011102,2]
[353687983,1739991046558,-3046.97846164,0.00011102,2]
[353687984,1739991046567,-177.39420076,0.00011109,2]
[353687985,1739991046577,-659.34,0.00011118,2]
[353687986,1739991046586,-500.0,0.00011118,2]
[353687987,1739991046595,-1285.43,0.00011118,2]
[353687988,1739991046605,-2055.78,0.00011118,2]
[353687989,1739991046615,-1176.26,0.00011118,2]
[353687990,1739991046625,-1598.02,0.00011118,2]
[353687991,1739991046634,-1177.64,0.00011118,2]
[353687992,1739991046644,-1728.13,0.00011118,2]
[353687993,1739991046653,-1464.57,0.00011118,2]
[353687994,1739991046662,-500.0,0.00011118,2]
[353687995,1739991046672,-988.1,0.00011118,2]
[353687996,1739991046682,-1523.71,0.00011118,2]
[353687997,1739991046691,-1697.79,0.00011118,2]
[353687998,1739991046701,-914.84,0.00011118,2]
[353687999,1739991046710,-1345.01,0.00011118,2]
[353688000,1739991046720,-1899.5,0.00011118,2]
[353688001,1739991046730,-500.0,0.00011118,2]
[353688002,1739991046740,-835.97,0.00011118,2]
[353688003,1739991046749,-1253.59,0.00011118,2]
[353688004,1739991046759,-500.0,0.00011118,2]
[353688005,1739991046769,-676.35,0.00011118,2]
[353688006,1739991046779,-1199.2,0.00011118,2]
[353688007,1739991046788,-1444.06,0.00011118,2]
[353688008,1739991046798,-1165.51,0.00011118,2]
[353688009,1739991046807,-1110.09,0.00011118,2]
[353688010,1739991046816,-955.77,0.00011118,2]
[353688011,1739991046826,-1702.36,0.00011118,2]
[353688012,1739991046835,-500.0,0.00011118,2]
[353688013,1739991046845,-500.0,0.00011118,2]
[353688014,1739991046854,-1068.07,0.00011118,2]
[353688015,1739991046863,-541.29,0.00011118,2]
[353688016,1739991046873,-1380.32,0.00011118,2]
[353688017,1739991046883,-500.0,0.00011118,2]
[353688018,1739991046892,-500.0,0.00011118,2]
[353688019,1739991046902,-500.0,0.00011118,2]
[353688020,1739991046912,-558.79820695,0.00011118,2]
[353688021,1739991046921,-375.77978438,0.00011118,2]
[353688022,1739991046931,-500.0,0.00011118,2]
[353688023,1739991046940,-500.0,0.00011118,2]
[353688024,1739991046949,-481.6318694,0.00011118,2]
[353688025,1739991046959,-165.57912809,0.00011118,2]
[353688026,1739991046968,-500.0,0.00011118,2]
[353688027,1739991046978,-500.0,0.00011118,2]
[353688028,1739991046987,-500.0,0.00011118,2]
[353688029,1739991046997,-500.0,0.00011118,2]
[353688030,1739991047006,-500.0,0.00011119,2]
[353688031,1739991047016,-500.0,0.00011119,2]
[353688032,1739991047025,-500.0,0.00011119,2]
[353688033,1739991047035,-500.0,0.00011119,2]
[353688034,1739991047044,-500.0,0.00011119,2]
[353688035,1739991047054,-500.0,0.00011119,2]
[353688036,1739991047063,-958.09,0.00011119,2]
[353688037,1739991047073,-500.0,0.00011119,2]
[353688038,1739991047083,-500.0,0.00011119,2]
[353688039,1739991047093,-638.44,0.00011119,2]
[353688040,1739991047102,-1305.17,0.00011119,2]
[353688041,1739991047111,-500.0,0.00011119,2]
[353688042,1739991047121,-535.3046674,0.00011119,2]
[353688043,1739991047132,-500.0,0.00011119,2]
[353688044,1739991047142,-500.0,0.00011119,2]
[353688045,1739991047152,-500.0,0.00011119,2]
[353688046,1739991047163,-1013.4,0.00011119,2]
[353688047,1739991047172,-500.0,0.00011119,2]
[353688048,1739991047182,-800.82,0.00011119,2]
[353688049,1739991047192,-500.0,0.00011119,2]
[353688050,1739991047202,-1291.22,0.00011119,2]
[353688051,1739991047211,-500.0,0.00011119,2]
[353688052,1739991047221,-500.0,0.00011119,2]
[353688053,1739991047231,-500.0,0.00011119,2]
[353688054,1739991047241,-1100.17,0.00011119,2]
[353688055,1739991047252,-1000.0,0.00011119,2]
[353688056,1739991047262,-1000.0,0.00011119,2]
[353688057,1739991047271,-1000.0,0.00011119,2]
[353688058,1739991047282,-659.34,0.00011119,2]
[353688059,1739991047292,-847191.41583138,0.00011119,3]
[353688060,1739991047301,-253.37255822,0.00011119,3]
[353688061,1739991047310,-200.0,0.0001112,2]
[353688062,1739991047320,-500.0,0.0001112,2]
[353688063,1739991047329,-500.0,0.0001112,2]
[353688064,1739991047339,-500.0,0.0001112,2]
[353688065,1739991047348,-564.03,0.0001112,2]
[353688066,1739991047358,-500.0,0.0001112,2]
[353688067,1739991047367,-500.0,0.0001112,2]
[353688068,1739991047379,-711.12,0.0001112,2]
[353688069,1739991047389,-500.0,0.0001112,2]
[353688070,1739991047398,-500.0,0.0001112,2]
[353688071,1739991047472,-500.0,0.0001112,2]
[353688072,1739991047482,-500.0,0.0001112,2]
[353688073,1739991047491,-500.0,0.0001112,2]
[353688074,1739991047500,-500.0,0.0001112,2]
[353688075,1739991047512,-500.0,0.0001112,2]
[353688076,1739991047523,-500.0,0.0001112,2]
[353688077,1739991047532,-567.75,0.0001112,2]
[353688078,1739991047541,-500.0,0.0001112,2]
[353688079,1739991047550,-648.92,0.0001112,2]
[353688080,1739991047559,-774.79,0.0001112,2]
[353688081,1739991047568,-500.0,0.0001112,2]
[353688082,1739991047577,-500.0,0.0001112,2]
[353688083,1739991047587,-387.033023,0.0001112,2]
[353688084,1739991047595,-500.0,0.0001112,2]
[353688085,1739991047604,-500.0,0.0001112,2]
[353688086,1739991047613,-939.76,0.0001112,2]
[353688087,1739991047622,-500.0,0.0001112,2]
[353688088,1739991047635,-500.0,0.0001112,2]
[353688089,1739991047643,-500.0,0.0001112,2]
[353688090,1739991047652,-500.0,0.0001112,2]
[353688091,1739991047660,-500.0,0.0001112,2]
[353688092,1739991047669,-500.0,0.0001112,2]
[353688093,1739991047678,-500.0,0.0001112,2]
[353688094,1739991047688,-500.0,0.0001112,2]
[353688095,1739991047697,-500.0,0.0001112,2]
[353688096,1739991047706,-726.31,0.0001112,2]
[353688097,1739991047716,-500.0,0.0001112,2]
[353688098,1739991047726,-500.0,0.0001112,2]
[353688099,1739991047735,-527.6,0.0001112,2]
[353688100,1739991047743,-500.0,0.0001112,2]
[353688101,1739991047753,-637.14,0.0001112,2]
[353688102,1739991047762,-335.282174,0.0001112,2]
[353688103,1739991047771,-500.0,0.0001112,2]
[353688104,1739991047781,-500.0,0.0001112,2]
[353688105,1739991047791,-501.4,0.0001112,2]
[353688106,1739991047800,-550.13,0.0001112,2]
[353688107,1739991047809,-445.363227,0.0001112,2]
[353688108,1739991047819,-500.0,0.0001112,2]
[353688109,1739991047828,-500.0,0.0001112,2]
[353688110,1739991047838,-566.24,0.0001112,2]
[353688111,1739991047847,-605.64,0.0001112,2]
[353688112,1739991047857,-500.0,0.0001112,2]
[353688113,1739991047866,-500.0,0.0001112,2]
[353688114,1739991047875,-500.0,0.0001112,2]
[353688115,1739991047888,-500.0,0.0001112,2]
[353688116,1739991047900,-500.0,0.0001112,2]
[353688117,1739991047910,-705.7,0.0001112,2]
[353688118,1739991047919,-670.06,0.0001112,2]
[353688119,1739991047928,-500.0,0.0001112,2]
[353688120,1739991047937,-1007.94,0.0001112,2]
[353688121,1739991047947,-500.0,0.0001112,2]
[353688122,1739991047956,-503.69947309,0.0001112,2]
[353688123,1739991047966,-500.0,0.0001112,2]
[353688124,1739991047975,-500.0,0.0001112,2]
[353688125,1739991047984,-500.0,0.0001112,2]
[353688126,1739991047993,-200.0,0.0001112,2]
[353688127,1739991048003,-500.0,0.0001112,2]
[353688128,1739991048012,-741.15,0.0001112,2]
[353688129,1739991048022,-500.0,0.0001112,2]
[353688130,1739991048031,-500.0,0.0001112,2]
[353688131,1739991048041,-500.0,0.0001112,2]
[353688132,1739991048050,-917.52,0.0001112,2]
[353688133,1739991048059,-653.65,0.0001112,2]
[353688134,1739991048068,-500.0,0.0001112,2]
[353688135,1739991048078,-1164.92,0.0001112,2]
[353688136,1739991048087,-500.0,0.0001112,2]
[353688137,1739991048096,-500.0,0.0001112,2]
[353688138,1739991048106,-500.0,0.0001112,2]
[353688139,1739991048115,-1009.77,0.0001112,2]
[353688140,1739991048125,-500.0,0.0001112,2]
[353688141,1739991048137,-1086.24,0.0001112,2]
[353688142,1739991048147,-575.12,0.0001112,2]
[353688143,1739991048156,-1103.11,0.0001112,2]
[353688144,1739991048166,-500.0,0.0001112,2]
[353688145,1739991048176,-500.0,0.0001112,2]
[353688146,1739991048186,-500.0,0.0001112,2]
[353688147,1739991048196,-1008.4,0.0001112,2]
[353688148,1739991048206,-500.0,0.0001112,2]
[353688149,1739991048215,-502.54514172,0.0001112,2]
[353688150,1739991048225,-500.0,0.0001112,2]
[353688151,1739991048235,-500.0,0.0001112,2]
[353688152,1739991048245,-500.0,0.0001112,2]
[353688153,1739991048255,-500.0,0.0001112,2]
[353688154,1739991048265,-648.67,0.0001112,2]
[353688155,1739991048274,-500.0,0.0001112,2]
[353688156,1739991048283,-168.21230967,0.0001112,2]
[353688157,1739991048293,-689.09,0.0001112,2]
[353688158,1739991048302,-500.0,0.0001112,2]
[353688159,1739991048311,-1109.15,0.0001112,2]
[353688160,1739991048321,-500.0,0.0001112,2]
[353688161,1739991048330,-286.36745965,0.0001112,2]
[353688162,1739991048341,-709.82,0.0001112,2]
[353688163,1739991048350,-500.0,0.0001112,2]
[353688164,1739991048359,-752.25,0.0001112,2]
[353688165,1739991048368,-712.53,0.0001112,2]
[353688166,1739991048380,-500.0,0.0001112,2]
[353688167,1739991048390,-500.0,0.0001112,2]
[353688168,1739991048399,-500.0,0.0001112,2]
[353688169,1739991048409,-500.0,0.0001112,2]
[353688170,1739991048419,-759.69,0.0001112,2]
[353688171,1739991048429,-844.15,0.0001112,2]
[353688172,1739991048442,-500.0,0.0001112,2]
[353688173,1739991048452,-500.0,0.0001112,2]
[353688174,1739991048461,-1035.94,0.0001112,2]
[353688175,1739991048471,-500.0,0.0001112,2]
[353688176,1739991048483,-1177.99,0.0001112,2]
[353688177,1739991048492,-500.0,0.0001112,2]
[353688178,1739991048502,-939.45,0.0001112,2]
[353688179,1739991048513,-934.24,0.0001112,2]
[353688180,1739991048522,-970.06,0.0001112,2]
[353688181,1739991048532,-1565.74,0.0001112,2]
[353688182,1739991048542,-393.47403824,0.0001112,2]
[353688183,1739991048551,-500.0,0.0001112,2]
[353688184,1739991048561,-842.16,0.0001112,2]
[353688185,1739991048570,-500.0,0.0001112,2]
[353688186,1739991048579,-1231.95,0.0001112,2]
[353688187,1739991048588,-833.68,0.0001112,2]
[353688188,1739991048597,-779.39,0.0001112,2]
[353688189,1739991048608,-1114.74,0.0001112,2]
[353688190,1739991048617,-500.0,0.0001112,2]
[353688191,1739991048627,-1384.51,0.0001112,2]
[353688192,1739991048637,-992.43,0.0001112,2]
[353688193,1739991048647,-700.4,0.0001112,2]
[353688194,1739991048656,-500.0,0.0001112,2]
[353688195,1739991048664,-896.41,0.0001112,2]
[353688196,1739991048673,-500.0,0.0001112,2]
[353688197,1739991048682,-500.0,0.0001112,2]
[353688198,1739991048690,-500.0,0.0001112,2]
[353688199,1739991048699,-835.28,0.0001112,2]
[353688200,1739991048708,-500.0,0.0001112,2]
[353688201,1739991048716,-638.47,0.0001112,2]
[353688202,1739991048726,-730.1,0.0001112,2]
[353688203,1739991048735,-500.0,0.0001112,2]
[353688204,1739991048744,-722.91,0.0001112,2]
[353688205,1739991048754,-700.98,0.0001112,2]
[353688206,1739991048763,-500.0,0.0001112,2]
[353688207,1739991048773,-1307.87,0.0001112,2]
[353688208,1739991048782,-500.0,0.0001112,2]
[353688209,1739991048791,-500.0,0.0001112,2]
[353688210,1739991048800,-1299.23,0.0001112,2]
[353688211,1739991048809,-537.11,0.0001112,2]
[353688212,1739991048818,-887.61,0.0001112,2]
[353688213,1739991048828,-1563.31,0.0001112,2]
[353688214,1739991048837,-500.0,0.0001112,2]
[353688215,1739991048846,-500.0,0.0001112,2]
[353688216,1739991048856,-1023.26,0.0001112,2]
[353688217,1739991048865,-500.0,0.0001112,2]
[353688218,1739991048875,-626.84,0.0001112,2]
[353688219,1739991048884,-500.0,0.0001112,2]
[353688220,1739991048893,-500.0,0.0001112,2]
[353688221,1739991048903,-1193.06,0.0001112,2]
[353688222,1739991048913,-500.0,0.0001112,2]
[353688223,1739991048922,-809.28,0.0001112,2]
[353688224,1739991048931,-500.0,0.0001112,2]
[353688225,1739991048941,-569.98,0.0001112,2]
[353688226,1739991048951,-947.29,0.0001112,2]
[353688227,1739991048960,-500.0,0.0001112,2]
[353688228,1739991048970,-1098.62,0.0001112,2]
[353688229,1739991048979,-738.85,0.0001112,2]
[353688230,1739991048989,-602.42,0.0001112,2]
[353688231,1739991048998,-1563.53,0.0001112,2]
[353688232,1739991049007,-500.0,0.0001112,2]
[353688233,1739991049017,-819.36,0.0001112,2]
[353688234,1739991049027,-504.01,0.0001112,2]
[353688235,1739991049036,-500.0,0.0001112,2]
[353688236,1739991049046,-1617.89,0.0001112,2]
[353688237,1739991049056,-716.57,0.0001112,2]
[353688238,1739991049066,-841.31,0.0001112,2]
[353688239,1739991049076,-568.32,0.0001112,2]
[353688240,1739991049086,-532.46366584,0.0001112,2]
[353688241,1739991049095,-1059.78,0.0001112,2]
[353688242,1739991049105,-500.0,0.0001112,2]
[353688243,1739991049115,-500.0,0.0001112,2]
[353688244,1739991049125,-1902.45,0.0001112,2]
[353688245,1739991049135,-685.17,0.0001112,2]
[353688246,1739991049145,-948.49,0.0001112,2]
[353688247,1739991049156,-1210.93,0.0001112,2]
[353688248,1739991049166,-500.0,0.0001112,2]
[353688249,1739991049176,-997.72,0.0001112,2]
[353688250,1739991049186,-1232.61,0.0001112,2]
[353688251,1739991049195,-1224.85,0.0001112,2]
[353688252,1739991049205,-660.75,0.0001112,2]
[353688253,1739991049215,-722.62,0.0001112,2]
[353688254,1739991049224,-856.89,0.0001112,2]
[353688255,1739991049234,-500.0,0.0001112,2]
[353688256,1739991049244,-1076.75,0.0001112,2]
[353688257,1739991049255,-500.0,0.0001112,2]
[353688258,1739991049266,-529.4,0.0001112,2]
[353688259,1739991049275,-1287.1,0.0001112,2]
[353688260,1739991049284,-500.0,0.0001112,2]
[353688261,1739991049293,-500.0,0.0001112,2]
[353688262,1739991049303,-500.0,0.0001112,2]
[353688263,1739991049312,-1123.65,0.0001112,2]
[353688264,1739991049322,-500.0,0.0001112,2]
[353688265,1739991049331,-500.0,0.0001112,2]
[353688266,1739991049341,-507.43,0.0001112,2]
[353688267,1739991049351,-767.14,0.0001112,2]
[353688268,1739991049360,-500.0,0.0001112,2]
[353688269,1739991049370,-838.25,0.0001112,2]
[353688270,1739991049380,-307.10947683,0.0001112,2]
[353688271,1739991049389,-500.0,0.0001112,2]
[353688272,1739991049398,-1834.21,0.0001112,2]
[353688273,1739991049407,-500.0,0.0001112,2]
[353688274,1739991049418,-500.0,0.0001112,2]
[353688275,1739991049428,-857.74,0.0001112,2]
[353688276,1739991049440,-500.0,0.0001112,2]
[353688277,1739991049450,-1131.11,0.0001112,2]
[353688278,1739991049459,-702.31,0.0001112,2]
[353688279,1739991049469,-500.0,0.0001112,2]
[353688280,1739991049479,-500.0,0.0001112,2]
[353688281,1739991049488,-967.39,0.0001112,2]
[353688282,1739991049497,-1818.6,0.0001112,2]
[353688283,1739991049505,-1022.47,0.0001112,2]
[353688284,1739991049515,-766.99,0.0001112,2]
[353688285,1739991049526,-1271.18,0.0001112,2]
[353688286,1739991049536,-562.14,0.0001112,2]
[353688287,1739991049546,-613.64,0.0001112,2]
[353688288,1739991049556,-1255.93,0.0001112,2]
[353688289,1739991049567,-500.0,0.0001112,2]
[353688290,1739991049577,-500.0,0.0001112,7]
[353688291,1739991049587,-735.72,0.0001112,2]
[353688292,1739991049597,-1023.77,0.0001112,2]
[353688293,1739991049607,-500.0,0.0001112,2]
[353688294,1739991049617,-1954.75,0.0001112,2]
[353688295,1739991049628,-741.16,0.0001112,2]
[353688296,1739991049640,-500.0,0.0001112,2]
[353688297,1739991049658,-500.0,0.0001112,2]
[353688298,1739991049677,-500.0,0.0001112,2]
[353688299,1739991049696,-500.0,0.0001112,2]
[353688300,1739991049710,-1492.46,0.0001112,2]
[353688301,1739991049720,-1010.26,0.0001112,2]
[353688302,1739991049731,-1211.99,0.0001112,2]
[353688303,1739991049741,-500.0,0.0001112,2]
[353688304,1739991049752,-651.03,0.0001112,2]
[353688305,1739991049762,-908.55,0.0001112,2]
[353688306,1739991049772,-1115.3,0.0001112,2]
[353688307,1739991049782,-500.0,0.0001112,2]
[353688308,1739991049791,-622.28,0.0001112,2]
[353688309,1739991049800,-825.62,0.0001112,2]
[353688310,1739991049810,-725.41,0.0001112,2]
[353688311,1739991049819,-500.0,0.0001112,2]
[353688312,1739991049829,-1312.13,0.0001112,2]
[353688313,1739991049839,-500.0,0.0001112,2]
[353688314,1739991049849,-500.0,0.0001112,2]
[353688315,1739991049859,-1135.89,0.0001112,2]
[353688316,1739991049870,-500.0,0.0001112,2]
[353688317,1739991049881,-500.0,0.0001112,2]
[353688318,1739991049893,-500.0,0.0001112,2]
[353688319,1739991049902,-626.24,0.0001112,2]
[353688320,1739991049912,-873.22,0.0001112,2]
[353688321,1739991049922,-842.88,0.0001112,2]
[353688322,1739991049932,-500.0,0.0001112,2]
[353688323,1739991049942,-268.90290818,0.0001112,2]
[353688324,1739991049951,-828.64,0.0001112,2]
[353688325,1739991049963,-1067.13,0.0001112,2]
[353688326,1739991049978,-760.82,0.0001112,2]
[353688327,1739991049988,-500.0,0.0001112,2]
[353688328,1739991049997,-959.81,0.0001112,2]
[353688329,1739991050007,-500.0,0.0001112,2]
[353688330,1739991050018,-1130.2,0.0001112,2]
[353688331,1739991050027,-500.0,0.0001112,2]
[353688332,1739991050036,-500.0,0.0001112,2]
[353688333,1739991050045,-500.0,0.0001112,2]
[353688334,1739991050055,-621.03,0.0001112,2]
[353688335,1739991050065,-500.0,0.0001112,2]
[353688336,1739991050074,-837.8,0.0001112,2]
[353688337,1739991050083,-340.89044306,0.0001112,2]
[353688338,1739991050093,-500.0,0.0001112,2]